fUST/lending_fUST_20240826
["ID","MTS","AMOUNT","RATE_DAILY","PERIOD"]
[336058813,1724683844490,-500.0,0.00011786,2]
[336058814,1724683844500,-500.0,0.00011786,2]
[336058815,1724683844509,-708.09,0.00011786,2]
[336058816,1724683844518,-500.0,0.00011786,2]
[336058817,1724683844527,-500.0,0.00011786,2]
[336058818,1724683844537,-980.92,0.00011786,2]
[336058819,1724683844546,-500.0,0.00011786,2]
[336058820,1724683844556,-2411.27,0.00011786,2]
[336058821,1724683844565,-500.0,0.00011786,2]
[336058822,1724683844575,-500.0,0.00011786,2]
[336058823,1724683844585,-500.0,0.00011786,2]
[336058824,1724683844595,-826.02,0.00011786,2]
[336058825,1724683844605,-439.75653772,0.00011786,2]
[336058826,1724683844614,-500.0,0.00011786,2]
[336058827,1724683844624,-1242.16,0.00011786,2]
[336058828,1724683844633,-500.0,0.00011786,2]
[336058829,1724683844643,-500.0,0.00011786,2]
[336058830,1724683844652,-551.81502551,0.00011786,2]
[336058831,1724683844662,-500.0,0.00011786,2]
[336058832,1724683844671,-709.66,0.00011786,2]
[336058833,1724683844681,-500.0,0.00011786,2]
[336058834,1724683844690,-500.0,0.00011786,2]
[336058835,1724683844699,-568.45,0.00011786,2]
[336058836,1724683844709,-517.46,0.00011786,2]
[336058837,1724683844718,-500.0,0.00011786,2]
[336058838,1724683844728,-500.0,0.00011786,2]
[336058839,1724683844737,-1084.83,0.00011786,2]
[336058840,1724683844747,-500.0,0.00011786,2]
[336058841,1724683844756,-622.4,0.00011786,2]
[336058842,1724683844765,-500.0,0.00011786,2]
[336058843,1724683844774,-569.51,0.00011786,2]
[336058844,1724683844784,-500.0,0.00011786,2]
[336058845,1724683844793,-500.0,0.00011786,2]
[336058846,1724683844804,-509.01,0.00011786,2]
[336058847,1724683844813,-500.0,0.00011786,2]
[336058848,1724683844822,-500.0,0.00011786,2]
[336058849,1724683844834,-568.93,0.00011786,2]
[336058850,1724683844843,-500.0,0.00011786,2]
[336058851,1724683844853,-618.11,0.00011786,2]
[336058852,1724683844863,-19806.16,0.00011786,2]
[336058853,1724683844872,-1814.86,0.00011786,2]
[336058854,1724683844882,-500.0,0.00011786,2]
[336058855,1724683844892,-500.0,0.00011786,2]
[336058856,1724683844902,-500.0,0.00011786,2]
[336058857,1724683844911,-983.96,0.00011786,2]
[336058858,1724683844921,-500.0,0.00011786,2]
[336058859,1724683844931,-500.0,0.00011786,2]
[336058860,1724683844940,-500.0,0.00011786,2]
[336058861,1724683844949,-500.0,0.00011786,2]
[336058862,1724683844959,-599.86,0.00011786,2]
[336058863,1724683844968,-1059.29,0.00011786,2]
[336058864,1724683844978,-500.0,0.00011786,2]
[336058865,1724683844987,-576.28,0.00011786,2]
[336058866,1724683844996,-849.16,0.00011786,2]
[336058867,1724683845006,-500.0,0.00011786,2]
[336058868,1724683845016,-606.34,0.00011786,2]
[336058869,1724683845026,-500.0,0.00011786,2]
[336058870,1724683845035,-1624.39,0.00011786,2]
[336058871,1724683845044,-500.0,0.00011786,2]
[336058872,1724683845053,-500.0,0.00011786,2]
[336058873,1724683845063,-500.0,0.00011786,2]
[336058874,1724683845072,-500.0,0.00011786,2]
[336058875,1724683845082,-554.58,0.00011786,2]
[336058876,1724683845091,-500.0,0.00011786,2]
[336058877,1724683845100,-500.0,0.00011786,2]
[336058878,1724683845110,-500.0,0.00011786,2]
[336058879,1724683845120,-508.32,0.00011786,2]
[336058880,1724683845129,-500.0,0.00011786,2]
[336058881,1724683845138,-500.0,0.00011786,2]
[336058882,1724683845148,-500.0,0.00011786,2]
[336058883,1724683845160,-500.0,0.00011786,2]
[336058884,1724683845170,-894.77,0.00011786,2]
[336058885,1724683845179,-500.0,0.00011786,2]
[336058886,1724683845188,-1522.6,0.00011786,2]
[336058887,1724683845199,-500.0,0.00011786,2]
[336058888,1724683845209,-500.0,0.00011786,2]
[336058889,1724683845218,-628.81,0.00011786,2]
[336058890,1724683845228,-500.0,0.00011787,2]
[336058891,1724683845238,-932.36,0.00011787,2]
[336058892,1724683845247,-171.16013381,0.00011787,2]
[336058893,1724683845256,-500.0,0.00011787,2]
[336058894,1724683845266,-556.89,0.00011787,2]
[336058895,1724683845276,-500.0,0.00011787,2]
[336058896,1724683845285,-500.0,0.00011787,2]
[336058897,1724683845294,-891.81,0.00011787,2]
[336058898,1724683845304,-991.31,0.00011787,2]
[336058899,1724683845313,-500.0,0.00011787,2]
[336058900,1724683845323,-500.0,0.00011787,2]
[336058901,1724683845333,-500.0,0.00011787,2]
[336058902,1724683845343,-590.57,0.00011787,2]
[336058903,1724683845352,-615.95,0.00011787,2]
[336058904,1724683845361,-500.0,0.00011787,2]
[336058905,1724683845371,-517.92,0.00011787,2]
[336058906,1724683845380,-500.0,0.00011787,2]
[336058907,1724683845390,-500.0,0.00011787,2]
[336058908,1724683845399,-877.96,0.00011787,2]
[336058909,1724683845408,-500.0,0.00011787,2]
[336058910,1724683845418,-1027.83,0.00011787,2]
[336058911,1724683845427,-679.07,0.00011787,2]
[336058912,1724683845437,-500.0,0.00011787,2]
[336058913,1724683845446,-634.2,0.00011787,2]
[336058914,1724683845455,-500.0,0.00011787,2]
[336058915,1724683845465,-701.24,0.00011787,2]
[336058916,1724683845474,-618.92,0.00011787,2]
[336058917,1724683845484,-548.36,0.00011787,2]
[336058918,1724683845493,-846.82,0.00011787,2]
[336058919,1724683845502,-639.75,0.00011787,2]
[336058920,1724683845512,-782.64,0.00011787,2]
[336058921,1724683845521,-500.0,0.00011787,2]
[336058922,1724683845530,-619.19,0.00011787,2]
[336058923,1724683845540,-500.0,0.00011787,2]
[336058924,1724683845549,-519.95,0.00011787,2]
[336058925,1724683845559,-500.0,0.00011787,2]
[336058926,1724683845568,-1073.48,0.00011787,2]
[336058927,1724683845578,-1009.62,0.00011787,2]
[336058928,1724683845588,-666.09,0.00011787,2]
[336058929,1724683845598,-727.18,0.00011787,2]
[336058930,1724683845607,-500.0,0.00011787,2]
[336058931,1724683845617,-631.66,0.00011787,2]
[336058932,1724683845627,-1900.22,0.00011787,2]
[336058933,1724683845636,-1034.48,0.00011787,2]
[336058934,1724683845645,-515.91,0.00011787,2]
[336058935,1724683845654,-500.0,0.00011787,2]
[336058936,1724683845664,-500.0,0.00011787,2]
[336058937,1724683845674,-500.0,0.00011787,2]
[336058938,1724683845683,-500.0,0.00011787,2]
[336058939,1724683845692,-634.62,0.00011787,2]
[336058940,1724683845702,-660.66,0.00011787,2]
[336058941,1724683845711,-500.0,0.00011787,2]
[336058942,1724683845720,-880.6,0.00011787,2]
[336058943,1724683845729,-500.0,0.00011787,2]
[336058945,1724683845739,-500.0,0.00011787,2]
[336058947,1724683845797,-651.58,0.00011787,2]
[336058948,1724683845806,-500.0,0.00011787,2]
[336058949,1724683845815,-1051.23,0.00011787,2]
[336058950,1724683845824,-500.0,0.00011787,2]
[336058951,1724683845835,-500.0,0.00011787,2]
[336058952,1724683845844,-571.37,0.00011787,2]
[336058953,1724683845853,-500.0,0.00011787,2]
[336058954,1724683845862,-500.0,0.00011787,2]
[336058955,1724683845871,-500.0,0.00011787,2]
[336058956,1724683845881,-1259.84,0.00011787,2]
[336058957,1724683845890,-1265.69,0.00011787,2]
[336058958,1724683845899,-500.0,0.00011787,2]
[336058959,1724683845908,-500.0,0.00011787,2]
[336058960,1724683845918,-603.95,0.00011787,2]
[336058961,1724683845927,-500.0,0.00011787,2]
[336058963,1724683845936,-500.0,0.00011787,2]
[336058965,1724683845946,-500.0,0.00011787,2]
[336058967,1724683845956,-203.3583391,0.00011787,2]
[336058999,1724683846267,-341.0716609,0.00011787,2]
[336059001,1724683846277,-79.23662747,0.00011787,2]
[336059004,1724683846288,-420.76337253,0.00011787,2]
[336059006,1724683846298,-500.0,0.00011787,2]
[336059008,1724683846308,-7.97551423,0.00011787,2]
[336059013,1724683846346,-893.70448577,0.00011787,2]
[336059015,1724683846356,-500.0,0.00011787,2]
[336059017,1724683846365,-823.22,0.00011787,2]
[336059018,1724683846375,-2656.92,0.00011787,2]
[336059021,1724683846384,-431.85824233,0.00011787,2]
[336059023,1724683846394,-500.0,0.00011788,2]
[336059025,1724683846403,-500.0,0.00011788,2]
[336059027,1724683846413,-563.68,0.00011788,2]
[336059028,1724683846422,-722.17,0.00011788,2]
[336059030,1724683846432,-500.0,0.00011788,2]
[336059032,1724683846441,-810.1,0.00011788,2]
[336059035,1724683846451,-616.92,0.00011788,2]
[336059037,1724683846460,-500.0,0.00011788,2]
[336059038,1724683846469,-725.16,0.00011788,2]
[336059041,1724683846479,-500.0,0.00011788,2]
[336059043,1724683846488,-500.0,0.00011788,2]
[336059045,1724683846497,-698.05,0.00011788,2]
[336059047,1724683846508,-500.0,0.00011788,2]
[336059049,1724683846517,-527.47,0.00011788,2]
[336059051,1724683846526,-660.48,0.00011788,2]
[336059053,1724683846536,-500.0,0.00011788,2]
[336059055,1724683846545,-878.7,0.00011788,2]
[336059057,1724683846554,-500.0,0.00011788,2]
[336059059,1724683846563,-578.92,0.00011788,2]
[336059061,1724683846572,-500.0,0.00011788,2]
[336059063,1724683846581,-968.71,0.00011788,2]
[336059065,1724683846593,-500.0,0.00011788,2]
[336059067,1724683846603,-948.05,0.00011788,2]
[336059069,1724683846612,-500.0,0.00011788,2]
[336059071,1724683846621,-338.62963851,0.00011788,2]
[336059073,1724683846631,-1034.7,0.00011788,2]
[336059075,1724683846640,-803.26,0.00011788,2]
[336059077,1724683846649,-382.06,0.00011788,2]
[336059079,1724683846658,-500.0,0.00011788,2]
[336059081,1724683846667,-631.93,0.00011788,2]
[336059083,1724683846676,-500.0,0.00011788,2]
[336059085,1724683846685,-500.0,0.00011788,2]
[336059087,1724683846694,-500.0,0.00011788,2]
[336059089,1724683846703,-909.82,0.00011788,2]
[336059091,1724683846713,-331.92,0.00011788,2]
[336059093,1724683846725,-500.0,0.00011788,2]
[336059095,1724683846734,-510.65,0.00011788,2]
[336059097,1724683846743,-500.0,0.00011788,2]
[336059099,1724683846752,-500.0,0.00011788,2]
[336059101,1724683846761,-500.0,0.00011788,2]
[336059102,1724683846770,-879.67,0.00011788,2]
[336059104,1724683846779,-879.67,0.00011788,2]
[336059106,1724683846788,-500.0,0.00011788,2]
[336059108,1724683846797,-571.43,0.00011788,2]
[336059110,1724683846807,-500.0,0.00011789,2]
[336059112,1724683846816,-500.0,0.00011789,2]
[336059114,1724683846825,-500.0,0.00011789,2]
[336059116,1724683846838,-500.0,0.00011789,2]
[336059119,1724683846847,-500.0,0.00011789,2]
[336059121,1724683846857,-500.0,0.00011789,2]
[336059123,1724683846866,-462.89826936,0.00011789,2]
[336059125,1724683846880,-37.10173064,0.00011789,2]
[336059127,1724683846889,-500.0,0.00011789,2]
[336059129,1724683846898,-500.0,0.00011789,2]
[336059131,1724683846908,-500.0,0.00011789,2]
[336059133,1724683846917,-500.0,0.00011789,2]
[336059135,1724683846927,-986.49,0.00011789,2]
[336059137,1724683846936,-500.0,0.00011789,2]
[336059139,1724683846945,-500.0,0.00011789,2]
[336059141,1724683846955,-500.0,0.00011789,2]
[336059143,1724683846964,-500.0,0.00011789,2]
[336059145,1724683846973,-500.0,0.00011789,2]
[336059147,1724683846982,-500.0,0.00011789,2]
[336059149,1724683846992,-500.0,0.00011789,2]
[336059151,1724683847001,-500.0,0.00011789,2]
[336059153,1724683847011,-500.0,0.00011789,2]
[336059155,1724683847020,-500.0,0.00011789,2]
[336059157,1724683847030,-912.43,0.00011789,2]
[336059159,1724683847040,-500.0,0.00011789,2]
[336059161,1724683847050,-612.67,0.00011789,2]
[336059163,1724683847060,-500.0,0.00011789,2]
[336059165,1724683847070,-500.0,0.00011789,2]
[336059167,1724683847079,-500.0,0.00011789,2]
[336059169,1724683847090,-500.0,0.00011789,2]
[336059171,1724683847100,-500.0,0.00011789,2]
[336059172,1724683847110,-500.0,0.00011789,2]
[336059173,1724683847119,-500.0,0.00011789,2]
[336059174,1724683847129,-634.45,0.00011789,2]
[336059175,1724683847138,-500.0,0.00011789,2]
[336059176,1724683847149,-500.0,0.00011789,2]
[336059177,1724683847161,-506.2,0.00011789,2]
[336059178,1724683847170,-500.0,0.00011789,2]
[336059179,1724683847179,-500.0,0.00011789,2]
[336059180,1724683847190,-500.0,0.00011789,2]
[336059181,1724683847199,-534.77,0.00011789,2]
[336059182,1724683847208,-796.24,0.00011789,2]
[336059183,1724683847218,-500.0,0.00011789,2]
[336059184,1724683847227,-500.0,0.00011789,2]
[336059185,1724683847241,-500.0,0.00011789,2]
[336059186,1724683847251,-1055.34,0.00011789,2]
[336059187,1724683847260,-667.58,0.00011789,2]
[336059188,1724683847269,-559.61301964,0.00011789,2]
[336059189,1724683847279,-564.59,0.00011789,2]
[336059190,1724683847288,-500.0,0.00011789,2]
[336059191,1724683847298,-500.0,0.00011789,2]
[336059192,1724683847307,-500.0,0.00011789,2]
[336059193,1724683847316,-648.51,0.00011789,2]
[336059194,1724683847326,-500.0,0.00011789,2]
[336059195,1724683847336,-500.0,0.00011789,2]
[336059196,1724683847345,-500.0,0.00011789,2]
[336059197,1724683847354,-1018.16,0.00011789,2]
[336059198,1724683847364,-502.36190259,0.00011789,2]
[336059199,1724683847373,-801.7,0.00011789,2]
[336059200,1724683847382,-571.24,0.00011789,2]
[336059201,1724683847391,-597.01,0.00011789,2]
[336059202,1724683847401,-693.59,0.00011789,2]
[336059203,1724683847410,-500.0,0.00011789,2]
[336059204,1724683847420,-500.0,0.00011789,2]
[336059205,1724683847430,-659.57,0.00011789,2]
[336059207,1724683847439,-851.78,0.00011789,2]
[336059208,1724683847449,-569.92,0.00011789,2]
[336059210,1724683847459,-641.65675802,0.00011789,2]
[336059212,1724683847468,-500.0,0.00011789,2]
[336059213,1724683847478,-798.87,0.00011789,2]
[336059214,1724683847487,-500.0,0.00011789,2]
[336059216,1724683847496,-500.0,0.00011789,2]
[336059218,1724683847506,-605.54,0.00011789,2]
[336059221,1724683847516,-500.0,0.00011789,2]
[336059223,1724683847526,-556.37,0.00011789,2]
[336059225,1724683847535,-590.44,0.00011789,2]
[336059227,1724683847545,-556.97,0.00011789,2]
[336059229,1724683847555,-526.66,0.00011789,2]
[336059231,1724683847564,-500.0,0.00011789,2]
[336059233,1724683847573,-500.0,0.00011789,2]
[336059234,1724683847582,-500.0,0.00011789,2]
[336059236,1724683847593,-515.44,0.00011789,2]
[336059238,1724683847602,-235.76265566,0.00011789,2]
[336059240,1724683847612,-162.21700301,0.00011789,2]
[336059242,1724683847621,-500.0,0.00011789,2]
[336059243,1724683847630,-500.0,0.00011789,2]
[336059244,1724683847641,-555.75,0.00011789,2]
[336059245,1724683847651,-501.02,0.00011789,2]
[336059246,1724683847660,-500.0,0.00011789,2]
[336059247,1724683847670,-500.0,0.00011789,2]
[336059249,1724683847679,-576.61,0.00011789,2]
[336059251,1724683847688,-671.37,0.00011789,2]
[336059252,1724683847698,-500.0,0.00011789,2]
[336059253,1724683847707,-500.0,0.00011789,2]
[336059254,1724683847716,-937.68,0.00011789,2]
[336059255,1724683847726,-500.0,0.00011789,2]
[336059256,1724683847736,-500.0,0.00011789,2]
[336059257,1724683847745,-500.0,0.00011789,2]
[336059258,1724683847755,-500.0,0.00011789,2]
[336059259,1724683847764,-875.15,0.00011789,2]
[336059260,1724683847774,-560.77,0.00011789,2]
[336059261,1724683847783,-551.64,0.00011789,2]
[336059262,1724683847793,-500.0,0.00011789,2]
[336059263,1724683847802,-500.0,0.00011789,2]
[336059264,1724683847811,-688.56,0.00011789,2]
[336059265,1724683847822,-602.82,0.00011789,2]
[336059266,1724683847832,-500.0,0.00011789,2]
[336059267,1724683847845,-500.0,0.00011789,2]
[336059268,1724683847856,-500.0,0.00011789,2]
[336059269,1724683847869,-521.04,0.00011789,2]
[336059270,1724683847878,-500.0,0.00011789,2]
[336059271,1724683847888,-500.0,0.00011789,2]
[336059272,1724683847897,-500.0,0.00011789,2]
[336059273,1724683847907,-500.0,0.00011789,2]
[336059274,1724683847916,-500.0,0.00011789,2]
[336059275,1724683847926,-500.0,0.00011789,2]
[336059276,1724683847935,-500.0,0.00011789,2]
[336059277,1724683847945,-500.0,0.00011789,2]
[336059278,1724683847957,-500.0,0.00011789,2]
[336059279,1724683847968,-568.47,0.00011789,2]
[336059280,1724683847978,-500.0,0.00011789,2]
[336059281,1724683847988,-500.0,0.00011789,2]
[336059282,1724683847998,-717.04,0.00011789,2]
[336059283,1724683848008,-500.0,0.00011789,2]
[336059284,1724683848018,-500.0,0.00011789,2]
[336059285,1724683848027,-500.0,0.00011789,2]
[336059286,1724683848036,-603.73,0.00011789,2]
[336059287,1724683848046,-500.0,0.00011789,2]
[336059288,1724683848055,-575.68,0.00011789,2]
[336059289,1724683848065,-469.03367656,0.00011789,2]
[336059290,1724683848075,-500.0,0.00011789,2]
[336059291,1724683848085,-500.0,0.00011789,2]
[336059292,1724683848095,-551.14639096,0.00011789,2]
[336059293,1724683848105,-500.0,0.00011789,2]
[336059294,1724683848114,-500.0,0.00011789,2]
[336059295,1724683848124,-500.0,0.00011789,2]
[336059296,1724683848134,-500.0,0.00011789,2]
[336059297,1724683848147,-500.0,0.00011789,2]
[336059298,1724683848157,-565.23,0.00011789,2]
[336059299,1724683848169,-725.39,0.00011789,2]
[336059300,1724683848178,-500.0,0.00011789,2]
[336059301,1724683848187,-567.2,0.00011789,2]
[336059302,1724683848197,-500.0,0.00011789,2]
[336059303,1724683848206,-500.0,0.00011789,2]
[336059304,1724683848215,-835.77,0.00011789,2]
[336059305,1724683848227,-500.0,0.00011789,2]
[336059306,1724683848237,-500.0,0.00011789,2]
[336059307,1724683848246,-530.62,0.00011789,2]
[336059308,1724683848256,-537.49,0.00011789,2]
[336059309,1724683848266,-500.0,0.00011789,2]
[336059310,1724683848275,-624.44806533,0.00011789,2]
[336059311,1724683848285,-732.91,0.00011789,2]
[336059312,1724683848294,-500.0,0.00011789,2]
[336059313,1724683848304,-743.84,0.00011789,2]
[336059314,1724683848313,-500.0,0.00011789,2]
[336059315,1724683848322,-771.69,0.00011789,2]
[336059316,1724683848332,-500.0,0.00011789,2]
[336059317,1724683848343,-500.0,0.00011789,2]
[336059318,1724683848353,-500.0,0.00011789,2]
[336059319,1724683848362,-813.79,0.00011789,2]
[336059320,1724683848373,-500.0,0.00011789,2]
[336059321,1724683848382,-500.0,0.00011789,2]
[336059322,1724683848391,-500.0,0.00011789,2]
[336059323,1724683848401,-591.55,0.00011789,2]
[336059324,1724683848411,-534.86,0.00011789,2]
[336059325,1724683848420,-1307.79,0.00011789,2]
[336059326,1724683848430,-905.98,0.00011789,2]
[336059327,1724683848439,-577.78,0.00011789,2]
[336059328,1724683848450,-753.43,0.00011789,2]
[336059329,1724683848460,-500.0,0.00011789,2]
[336059330,1724683848469,-879.67,0.00011789,2]
[336059331,1724683848479,-879.67,0.00011789,2]
[336059332,1724683848488,-879.67,0.00011789,2]
[336059333,1724683848498,-910.6,0.00011789,2]
[336059334,1724683848508,-483.64010277,0.00011789,2]
[336059335,1724683848518,-520.44772911,0.00011789,2]
[336059336,1724683848527,-500.0,0.00011789,2]
[336059337,1724683848537,-500.0,0.00011789,2]
[336059338,1724683848546,-500.0,0.0001179,2]
[336059339,1724683848556,-500.0,0.0001179,2]
[336059340,1724683848565,-500.0,0.0001179,2]
[336059341,1724683848575,-736.46,0.0001179,2]
[336059342,1724683848586,-703.27,0.0001179,2]
[336059343,1724683848596,-888.47,0.0001179,2]
[336059344,1724683848606,-597.66,0.0001179,2]
[336059345,1724683848616,-750.02,0.0001179,2]
[336059346,1724683848625,-500.0,0.0001179,2]
[336059347,1724683848635,-500.0,0.0001179,2]
[336059348,1724683848645,-917.73,0.0001179,2]
[336059349,1724683848655,-500.0,0.0001179,2]
[336059350,1724683848664,-1318.79,0.0001179,2]
[336059351,1724683848674,-500.0,0.0001179,2]
[336059352,1724683848683,-407.71911968,0.0001179,2]
[336059353,1724683848693,-500.0,0.0001179,2]
[336059354,1724683848703,-301.06174266,0.0001179,2]
[336059355,1724683848712,-500.0,0.0001179,2]
[336059356,1724683848722,-500.0,0.0001179,2]
[336059357,1724683848731,-500.0,0.0001179,2]
[336059358,1724683848741,-500.0,0.0001179,2]
[336059359,1724683848751,-500.0,0.0001179,2]
[336059360,1724683848760,-500.0,0.0001179,2]
[336059361,1724683848770,-500.0,0.0001179,2]
[336059362,1724683848779,-500.0,0.0001179,2]
[336059363,1724683848789,-741.14,0.0001179,2]
[336059364,1724683848798,-500.0,0.0001179,2]
[336059365,1724683848808,-644.67,0.0001179,2]
[336059366,1724683848818,-500.0,0.0001179,2]
[336059367,1724683848828,-500.0,0.0001179,2]
[336059368,1724683848839,-500.0,0.0001179,2]
[336059369,1724683848849,-500.0,0.0001179,2]
[336059370,1724683848859,-879.67,0.0001179,2]
[336059371,1724683848868,-879.67,0.00011791,2]
[336059372,1724683848878,-879.67,0.00011791,2]
[336059373,1724683848887,-422.52524319,0.00011842,2]
[336059374,1724683848896,-500.40823042,0.00011873,2]
[336059375,1724683848907,-312.06841519,0.00011873,2]
[336059376,1724683848917,-500.0,0.00011873,2]
[336059377,1724683848926,-500.0,0.00011873,2]
[336059378,1724683848936,-500.0,0.00011873,2]
[336059379,1724683848946,-500.0,0.00011899,2]
[336059380,1724683848955,-500.0,0.00011899,2]
[336059381,1724683848965,-221.69237376,0.00011899,2]
[336059382,1724683848974,-500.0,0.00011899,2]
[336059383,1724683848984,-500.0,0.00011899,2]
[336059384,1724683848993,-500.0,0.00011899,2]
[336059385,1724683849003,-267.84,0.00011899,2]
[336059386,1724683849012,-879.67,0.00011899,2]
[336059387,1724683849022,-879.67,0.00011899,2]
[336059388,1724683849032,-879.67,0.00011899,2]
[336059389,1724683849042,-879.67,0.00011899,2]
[336059390,1724683849052,-879.67,0.00011899,2]
[336059391,1724683849063,-879.89,0.00011899,2]
[336059392,1724683849072,-7502.01517039,0.000119,2]
[336059393,1724683849092,-235564.81221,0.000119,2]
[336059394,1724683849103,-13777.03252185,0.000119,2]
[336059395,1724683849617,-451.14273045,0.000119,2]
[336059396,1724683849629,-76077.98778131,0.000119,2]
[336059397,1724683849638,-11897.06987534,0.00011958,2]
[336059398,1724683849647,-1614.5867324,0.00011987,2]
[336059399,1724683849656,-1375.93290932,0.00011987,2]
[336059400,1724683849665,-255.38660707,0.00011999,2]
[336059401,1724683849675,-500.0,0.0001206,2]
[336059402,1724683849685,-573.81,0.0001206,2]
[336059403,1724683849694,-500.0,0.0001206,2]
[336059404,1724683849703,-500.0,0.0001206,2]
[336059405,1724683849712,-520.89,0.0001206,2]
[336059406,1724683849722,-500.0,0.0001206,2]
[336059407,1724683849731,-500.0,0.0001206,2]
[336059408,1724683849742,-500.0,0.0001206,2]
[336059409,1724683849751,-500.0,0.0001206,2]
[336059410,1724683849760,-500.0,0.0001206,2]
[336059411,1724683849769,-708.09,0.0001206,2]
[336059412,1724683849778,-500.0,0.0001206,2]
[336059413,1724683849787,-980.92,0.0001206,2]
[336059414,1724683849796,-2411.27,0.0001206,2]
[336059415,1724683849806,-500.0,0.0001206,2]
[336059416,1724683849815,-500.0,0.0001206,2]
[336059417,1724683849827,-500.0,0.0001206,2]
[336059418,1724683849839,-826.02,0.0001206,2]
[336059419,1724683849855,-500.0,0.0001206,2]
[336059420,1724683849864,-1242.16,0.0001206,2]
[336059421,1724683849873,-500.0,0.0001206,2]
[336059422,1724683849882,-500.0,0.0001206,2]
[336059423,1724683849891,-500.0,0.0001206,2]
[336059424,1724683849901,-709.66,0.0001206,2]
[336059425,1724683849910,-500.0,0.0001206,2]
[336059426,1724683849919,-500.0,0.0001206,2]
[336059427,1724683849929,-568.45,0.0001206,2]
[336059428,1724683849939,-517.46,0.0001206,2]
[336059429,1724683849949,-500.0,0.0001206,2]
[336059430,1724683849958,-500.0,0.0001206,2]
[336059431,1724683849967,-1084.83,0.0001206,2]
[336059432,1724683849976,-500.0,0.0001206,2]
[336059433,1724683849985,-622.4,0.0001206,2]
[336059434,1724683849994,-569.51,0.0001206,2]
[336059435,1724683850003,-500.0,0.0001206,2]
[336059436,1724683850012,-500.0,0.0001206,2]
[336059437,1724683850021,-509.01,0.0001206,2]
[336059438,1724683850030,-500.0,0.0001206,2]
[336059439,1724683850040,-500.0,0.0001206,2]
[336059440,1724683850048,-568.93,0.0001206,2]
[336059441,1724683850058,-500.0,0.0001206,2]
[336059442,1724683850066,-618.11,0.0001206,2]
[336059443,1724683850076,-19806.16,0.0001206,2]
[336059444,1724683850088,-1814.86,0.0001206,2]
[336059445,1724683850101,-500.0,0.0001206,2]
[336059446,1724683850110,-500.0,0.0001206,2]
[336059447,1724683850119,-500.0,0.0001206,2]
[336059448,1724683850128,-983.96,0.0001206,2]
[336059449,1724683850138,-500.0,0.0001206,2]
[336059450,1724683850149,-500.0,0.0001206,2]
[336059451,1724683850160,-500.0,0.0001206,2]
[336059452,1724683850169,-183.94969575,0.0001206,2]
[336059453,1724683850178,-599.86,0.0001206,2]
[336059454,1724683850187,-1059.29,0.0001206,2]
[336059455,1724683850197,-500.0,0.0001206,2]